[Event "Early-Titled-Tuesday-Blitz-May-28-2024"]
[Site "Chess.com"]
[Date "2024.05.28"]
[Round "3"]
[White "LeoLV10"]
[Black "jamengrand"]
[Result "1-0"]
[WhiteElo "2574"]
[BlackElo "2321"]
[TimeControl "180+1"]
[EndTime "8:28:04 PDT"]
[Termination "LeoLV10 won on time"]

1. e4 {[%clk 0:02:52.7]} 1... Nc6 {[%clk 0:03:00.1]} 2. d4 {[%clk 0:02:51.7]}
2... d5 {[%clk 0:02:59.9]} 3. e5 {[%clk 0:02:51.6]} 3... a6 {[%clk 0:02:59.7]}
4. c3 {[%clk 0:02:50]} 4... Bf5 {[%clk 0:02:57.9]} 5. Nf3 {[%clk 0:02:48.6]}
5... f6 {[%clk 0:02:56.9]} 6. Bf4 {[%clk 0:02:44]} 6... g5 {[%clk 0:02:55.9]} 7.
Bg3 {[%clk 0:02:44]} 7... h5 {[%clk 0:02:31.2]} 8. h3 {[%clk 0:02:37.8]} 8...
Qd7 {[%clk 0:02:18.1]} 9. Bd3 {[%clk 0:02:33.2]} 9... O-O-O {[%clk 0:02:14.1]}
10. b4 {[%clk 0:02:29.8]} 10... Na7 {[%clk 0:02:06.8]} 11. a4 {[%clk 0:02:26.6]}
11... Bg7 {[%clk 0:01:57.4]} 12. Qe2 {[%clk 0:02:24.6]} 12... Bxd3 {[%clk
0:01:56]} 13. Qxd3 {[%clk 0:02:24.3]} 13... g4 {[%clk 0:01:51.8]} 14. hxg4
{[%clk 0:02:21.1]} 14... hxg4 {[%clk 0:01:51.2]} 15. Rxh8 {[%clk 0:02:20.9]}
15... Bxh8 {[%clk 0:01:52.1]} 16. Nh4 {[%clk 0:02:19.1]} 16... fxe5 {[%clk
0:01:51.6]} 17. dxe5 {[%clk 0:02:19.1]} 17... Nc6 {[%clk 0:01:46.5]} 18. Ng6
{[%clk 0:02:05.7]} 18... Bg7 {[%clk 0:01:30.1]} 19. b5 {[%clk 0:02:05.4]} 19...
axb5 {[%clk 0:01:14.6]} 20. axb5 {[%clk 0:02:06.3]} 20... Nb8 {[%clk 0:01:14.8]}
21. Nd2 {[%clk 0:02:05.3]} 21... Nh6 {[%clk 0:01:06.8]} 22. Nb3 {[%clk
0:02:04.2]} 22... Nf5 {[%clk 0:01:03.7]} 23. Qxf5 {[%clk 0:01:57.9]} 23... e6
{[%clk 0:00:51.2]} 24. Qd3 {[%clk 0:01:54.9]} 24... Qf7 {[%clk 0:00:47.9]} 25.
Nd4 {[%clk 0:01:49.7]} 25... Bh6 {[%clk 0:00:42.8]} 26. Ra8 {[%clk 0:01:33.5]}
26... Rg8 {[%clk 0:00:41.5]} 27. Nh4 {[%clk 0:01:32]} 27... Bg5 {[%clk
0:00:34.2]} 28. Nc6 {[%clk 0:01:24.6]} 28... bxc6 {[%clk 0:00:33.2]} 29. bxc6
{[%clk 0:01:24.6]} 29... Kd8 {[%clk 0:00:09.8]} 30. Qb5 {[%clk 0:01:16.6]} 30...
Ke7 {[%clk 0:00:10.7]} 31. Qb4+ {[%clk 0:01:16.8]} 31... Ke8 {[%clk 0:00:07.8]}
32. Rxb8+ {[%clk 0:01:17.7]} 32... Bd8 {[%clk 0:00:06.7]} 33. Qf4 {[%clk
0:01:04.2]} 33... Qxf4 {[%clk 0:00:04.8]} 34. Bxf4 {[%clk 0:01:04.3]} 34... Kf7
{[%clk 0:00:05.7]} 35. g3 {[%clk 0:00:59.3]} 1-0

[Event "Early-Titled-Tuesday-Blitz-May-28-2024"]
[Site "Chess.com"]
[Date "2024.05.28"]
[Round "3"]
[White "kingofthenil"]
[Black "GianmarcoVaR"]
[Result "1-0"]
[WhiteElo "2945"]
[BlackElo "2721"]
[TimeControl "180+1"]
[EndTime "8:28:05 PDT"]
[Termination "kingofthenil won by resignation"]

1. Nf3 {[%clk 0:03:00.9]} 1... Nf6 {[%clk 0:02:58.4]} 2. e3 {[%clk 0:03:00.2]}
2... g6 {[%clk 0:02:58.6]} 3. b4 {[%clk 0:02:58.2]} 3... Bg7 {[%clk 0:02:59.5]}
4. Bb2 {[%clk 0:02:58.1]} 4... O-O {[%clk 0:02:59.5]} 5. c4 {[%clk 0:02:57]}
5... d6 {[%clk 0:02:59.6]} 6. d4 {[%clk 0:02:54.8]} 6... e5 {[%clk 0:02:59.2]}
7. dxe5 {[%clk 0:02:54.7]} 7... Nfd7 {[%clk 0:02:59.3]} 8. Nc3 {[%clk
0:02:51.4]} 8... dxe5 {[%clk 0:02:54.7]} 9. Qb3 {[%clk 0:02:42.8]} 9... f5
{[%clk 0:02:51.6]} 10. c5+ {[%clk 0:02:40.7]} 10... Kh8 {[%clk 0:02:50.8]} 11.
h4 {[%clk 0:02:41.2]} 11... c6 {[%clk 0:02:47.1]} 12. Ng5 {[%clk 0:02:38.6]}
12... Qe7 {[%clk 0:02:46.6]} 13. Bc4 {[%clk 0:02:38.5]} 13... Bf6 {[%clk
0:02:33.2]} 14. Nf7+ {[%clk 0:02:25.7]} 14... Kg7 {[%clk 0:02:32.9]} 15. h5
{[%clk 0:02:26.6]} 15... Rxf7 {[%clk 0:02:29.6]} 16. hxg6 {[%clk 0:02:20.5]}
16... hxg6 {[%clk 0:02:12.8]} 17. Bxf7 {[%clk 0:02:20.2]} 17... a5 {[%clk
0:01:42.3]} 18. Bxg6 {[%clk 0:01:41.2]} 18... Nf8 {[%clk 0:01:22.1]} 19. Bh5
{[%clk 0:01:38.8]} 19... axb4 {[%clk 0:01:17.7]} 20. Na4 {[%clk 0:01:33]} 20...
Na6 {[%clk 0:01:15.7]} 21. Be2 {[%clk 0:01:15.8]} 21... Nxc5 {[%clk 0:01:08.9]}
22. Nxc5 {[%clk 0:01:11.6]} 22... Qxc5 {[%clk 0:01:09.6]} 23. Rc1 {[%clk
0:00:45.4]} 23... Qa5 {[%clk 0:00:44.8]} 24. Bc4 {[%clk 0:00:45.2]} 24... Qa4
{[%clk 0:00:32.8]} 25. Qd3 {[%clk 0:00:41.3]} 25... b5 {[%clk 0:00:31.9]} 26.
Bb3 {[%clk 0:00:37.7]} 26... Qa6 {[%clk 0:00:29.6]} 27. Qd6 {[%clk 0:00:37.6]}
27... c5 {[%clk 0:00:17.7]} 28. Qxc5 {[%clk 0:00:37.6]} 28... Be6 {[%clk
0:00:12.8]} 29. Bxe5 {[%clk 0:00:37.2]} 29... Rc8 {[%clk 0:00:11.2]} 30. Qe7+
{[%clk 0:00:37]} 1-0

[Event "Early-Titled-Tuesday-Blitz-May-28-2024"]
[Site "Chess.com"]
[Date "2024.05.28"]
[Round "3"]
[White "FoggyMorning"]
[Black "db-banana"]
[Result "1-0"]
[WhiteElo "2651"]
[BlackElo "2478"]
[TimeControl "180+1"]
[EndTime "8:28:10 PDT"]
[Termination "FoggyMorning won by checkmate"]

1. e4 {[%clk 0:03:00.9]} 1... Nf6 {[%clk 0:03:00.9]} 2. e5 {[%clk 0:03:00.8]}
2... Nd5 {[%clk 0:03:01.3]} 3. d4 {[%clk 0:03:01.4]} 3... d6 {[%clk 0:03:01.6]}
4. Nf3 {[%clk 0:03:02.1]} 4... dxe5 {[%clk 0:03:01.4]} 5. Nxe5 {[%clk 0:03:03]}
5... g6 {[%clk 0:03:01.4]} 6. c4 {[%clk 0:03:00.8]} 6... Nb6 {[%clk 0:03:01.2]}
7. Nc3 {[%clk 0:02:57.1]} 7... Bg7 {[%clk 0:03:01.1]} 8. Nf3 {[%clk 0:02:53.2]}
8... O-O {[%clk 0:02:59.9]} 9. c5 {[%clk 0:02:50.9]} 9... Nd5 {[%clk 0:02:58.2]}
10. Bc4 {[%clk 0:02:51.5]} 10... Be6 {[%clk 0:02:54.2]} 11. Qb3 {[%clk
0:02:37.9]} 11... Nxc3 {[%clk 0:02:29]} 12. Bxe6 {[%clk 0:02:35.3]} 12... fxe6
{[%clk 0:01:34.3]} 13. Qxe6+ {[%clk 0:02:28.2]} 13... Kh8 {[%clk 0:01:29.5]} 14.
bxc3 {[%clk 0:02:28.5]} 14... Qc8 {[%clk 0:01:17.2]} 15. Ng5 {[%clk 0:02:21.3]}
15... h6 {[%clk 0:00:57.4]} 16. Qxc8 {[%clk 0:02:10.6]} 16... Rxc8 {[%clk
0:00:57.3]} 17. Ne6 {[%clk 0:02:11.5]} 17... Nc6 {[%clk 0:00:54.2]} 18. Bf4
{[%clk 0:02:09.7]} 18... Rg8 {[%clk 0:00:31.7]} 19. Nxc7 {[%clk 0:02:03.6]}
19... Rad8 {[%clk 0:00:28.1]} 20. Ne6 {[%clk 0:02:03.5]} 20... Rd5 {[%clk
0:00:28.4]} 21. Rb1 {[%clk 0:01:59.3]} 21... b6 {[%clk 0:00:24.5]} 22. cxb6
{[%clk 0:01:56.1]} 22... axb6 {[%clk 0:00:25.4]} 23. Rxb6 {[%clk 0:01:56.4]}
23... Na5 {[%clk 0:00:25.7]} 24. Nxg7 {[%clk 0:01:54.1]} 24... Kxg7 {[%clk
0:00:23.6]} 25. O-O {[%clk 0:01:49.6]} 25... g5 {[%clk 0:00:20.8]} 26. Bg3
{[%clk 0:01:45.7]} 26... Rc8 {[%clk 0:00:18.6]} 27. Rc1 {[%clk 0:01:24.8]} 27...
Nc4 {[%clk 0:00:18.2]} 28. Rb7 {[%clk 0:01:20.1]} 28... Kf6 {[%clk 0:00:17.7]}
29. h4 {[%clk 0:01:12.6]} 29... e6 {[%clk 0:00:12.2]} 30. Re1 {[%clk 0:01:08.3]}
30... Rc6 {[%clk 0:00:09.5]} 31. h5 {[%clk 0:01:03.8]} 31... g4 {[%clk
0:00:08.4]} 32. Bh4+ {[%clk 0:00:57.3]} 32... Rg5 {[%clk 0:00:09]} 33. Rh7
{[%clk 0:00:47.5]} 33... Kf5 {[%clk 0:00:01]} 34. Rf7# {[%clk 0:00:44.7]} 1-0

[Event "Early-Titled-Tuesday-Blitz-May-28-2024"]
[Site "Chess.com"]
[Date "2024.05.28"]
[Round "3"]
[White "elcala"]
[Black "BashirliSaadat"]
[Result "0-1"]
[WhiteElo "2005"]
[BlackElo "2371"]
[TimeControl "180+1"]
[EndTime "8:28:10 PDT"]
[Termination "BashirliSaadat won on time"]

1. d4 {[%clk 0:02:58]} 1... Nf6 {[%clk 0:02:54.5]} 2. c4 {[%clk 0:02:58.3]} 2...
g6 {[%clk 0:02:53.9]} 3. Nc3 {[%clk 0:02:58.6]} 3... Bg7 {[%clk 0:02:54.1]} 4.
Nf3 {[%clk 0:02:59]} 4... d6 {[%clk 0:02:54.6]} 5. e3 {[%clk 0:02:59.4]} 5...
O-O {[%clk 0:02:55.1]} 6. Be2 {[%clk 0:02:59.2]} 6... c5 {[%clk 0:02:55.7]} 7.
O-O {[%clk 0:02:57.5]} 7... Nc6 {[%clk 0:02:54.9]} 8. d5 {[%clk 0:02:57]} 8...
Ne5 {[%clk 0:02:52.6]} 9. Nxe5 {[%clk 0:02:56.1]} 9... dxe5 {[%clk 0:02:53.5]}
10. e4 {[%clk 0:02:55.3]} 10... Rb8 {[%clk 0:02:51.4]} 11. Bg5 {[%clk
0:02:53.1]} 11... Nd7 {[%clk 0:02:50.1]} 12. Bg4 {[%clk 0:02:45.8]} 12... h6
{[%clk 0:02:33.7]} 13. Bh4 {[%clk 0:02:42.4]} 13... g5 {[%clk 0:02:33.2]} 14.
Bg3 {[%clk 0:02:40.3]} 14... Nb6 {[%clk 0:02:30.6]} 15. Bxc8 {[%clk 0:02:30.8]}
15... Qxc8 {[%clk 0:02:31.1]} 16. Qe2 {[%clk 0:02:27.7]} 16... Qd7 {[%clk
0:02:19.7]} 17. b3 {[%clk 0:02:19.9]} 17... Rbc8 {[%clk 0:02:16.3]} 18. Rfd1
{[%clk 0:02:04.8]} 18... f5 {[%clk 0:02:06.6]} 19. exf5 {[%clk 0:01:58.1]} 19...
Rxf5 {[%clk 0:02:00.5]} 20. Re1 {[%clk 0:01:31.6]} 20... Rcf8 {[%clk 0:01:56.4]}
21. f3 {[%clk 0:01:30.7]} 21... e4 {[%clk 0:01:50]} 22. Nxe4 {[%clk 0:01:18.8]}
22... Bxa1 {[%clk 0:01:48]} 23. Rxa1 {[%clk 0:00:46.3]} 23... Qc8 {[%clk
0:01:32.8]} 24. Nc3 {[%clk 0:00:38.8]} 24... R8f7 {[%clk 0:01:21.1]} 25. Re1
{[%clk 0:00:26]} 25... Nd7 {[%clk 0:01:15.1]} 26. Qe6 {[%clk 0:00:22.7]} 26...
Rf6 {[%clk 0:01:11.3]} 27. Qe3 {[%clk 0:00:15.7]} 27... b6 {[%clk 0:01:10.1]}
28. Ne4 {[%clk 0:00:12.9]} 28... Rf5 {[%clk 0:01:10.4]} 29. Bf2 {[%clk
0:00:09.2]} 29... Nf8 {[%clk 0:01:06.8]} 30. Ng3 {[%clk 0:00:09.1]} 30... R5f6
{[%clk 0:01:04.7]} 31. Nh5 {[%clk 0:00:08.6]} 31... Rg6 {[%clk 0:01:01.5]} 32.
Qe4 {[%clk 0:00:06.2]} 32... Qf5 {[%clk 0:00:59.2]} 33. Qe2 {[%clk 0:00:01.8]}
33... g4 {[%clk 0:00:56]} 34. Ng3 {[%clk 0:00:02.7]} 34... gxf3 {[%clk
0:00:53.3]} 0-1

[Event "Early-Titled-Tuesday-Blitz-May-28-2024"]
[Site "Chess.com"]
[Date "2024.05.28"]
[Round "3"]
[White "Mesa_1"]
[Black "ab-lsv"]
[Result "0-1"]
[WhiteElo "2579"]
[BlackElo "2340"]
[TimeControl "180+1"]
[EndTime "8:28:12 PDT"]
[Termination "ab-lsv won by resignation"]

1. d4 {[%clk 0:03:00.9]} 1... d5 {[%clk 0:02:59.5]} 2. c4 {[%clk 0:03:01.2]}
2... c6 {[%clk 0:03:00]} 3. Nf3 {[%clk 0:03:00.7]} 3... Nf6 {[%clk 0:03:00.7]}
4. g3 {[%clk 0:03:01.3]} 4... Bf5 {[%clk 0:02:59.4]} 5. Nc3 {[%clk 0:03:00.7]}
5... e6 {[%clk 0:02:59.7]} 6. Nh4 {[%clk 0:03:01.3]} 6... Be4 {[%clk 0:02:55.6]}
7. f3 {[%clk 0:03:01.2]} 7... Bg6 {[%clk 0:02:52.7]} 8. Qb3 {[%clk 0:03:01.6]}
8... Qb6 {[%clk 0:02:44]} 9. c5 {[%clk 0:03:01.5]} 9... Qc7 {[%clk 0:02:43.8]}
10. Bf4 {[%clk 0:03:01.4]} 10... Qc8 {[%clk 0:02:43.6]} 11. e4 {[%clk
0:03:02.2]} 11... Be7 {[%clk 0:02:39.2]} 12. e5 {[%clk 0:02:59.9]} 12... Nfd7
{[%clk 0:02:39.1]} 13. Nxg6 {[%clk 0:02:58.4]} 13... hxg6 {[%clk 0:02:39.1]} 14.
Bd3 {[%clk 0:02:49.5]} 14... b6 {[%clk 0:02:31.8]} 15. cxb6 {[%clk 0:02:49.5]}
15... axb6 {[%clk 0:02:32.1]} 16. O-O {[%clk 0:02:50.2]} 16... c5 {[%clk
0:02:22.7]} 17. dxc5 {[%clk 0:02:42]} 17... bxc5 {[%clk 0:02:23]} 18. Qc2 {[%clk
0:02:29.9]} 18... g5 {[%clk 0:02:16.7]} 19. Bd2 {[%clk 0:02:26.9]} 19... Nxe5
{[%clk 0:02:12.6]} 20. Bb5+ {[%clk 0:02:27.5]} 20... Ned7 {[%clk 0:01:56.6]} 21.
Rae1 {[%clk 0:02:28.4]} 21... Nc6 {[%clk 0:01:48.7]} 22. f4 {[%clk 0:02:02.5]}
22... Nd4 {[%clk 0:01:36.7]} 23. Qd3 {[%clk 0:02:01.8]} 23... g4 {[%clk
0:01:23.1]} 24. a4 {[%clk 0:01:54.8]} 24... Kf8 {[%clk 0:01:18.2]} 25. Kg2
{[%clk 0:01:51.3]} 25... Nf3 {[%clk 0:01:11.9]} 26. Rxf3 {[%clk 0:01:48.5]}
26... gxf3+ {[%clk 0:01:12.8]} 27. Qxf3 {[%clk 0:01:48.8]} 27... Nf6 {[%clk
0:00:52.1]} 28. f5 {[%clk 0:01:49]} 28... exf5 {[%clk 0:00:48.8]} 29. Nxd5
{[%clk 0:01:46.2]} 29... Nxd5 {[%clk 0:00:37.2]} 30. Qxd5 {[%clk 0:01:47.1]}
30... f4 {[%clk 0:00:31.2]} 31. Bxf4 {[%clk 0:01:44.6]} 31... Qh3+ {[%clk
0:00:29.5]} 32. Kf2 {[%clk 0:01:27.2]} 32... Qxh2+ {[%clk 0:00:28.4]} 33. Ke3
{[%clk 0:01:27.7]} 33... Rd8 {[%clk 0:00:25.8]} 34. Qc4 {[%clk 0:01:17.4]} 34...
g5 {[%clk 0:00:19.8]} 35. Be5 {[%clk 0:01:13.2]} 35... f6 {[%clk 0:00:17.6]} 36.
Re2 {[%clk 0:01:10]} 36... Qg1+ {[%clk 0:00:15.5]} 37. Rf2 {[%clk 0:01:10.6]}
37... Rh2 {[%clk 0:00:08.5]} 38. Qe6 {[%clk 0:00:59.3]} 38... Qxf2+ {[%clk
0:00:08.3]} 39. Ke4 {[%clk 0:01:00.2]} 39... Qe2+ {[%clk 0:00:08.3]} 40. Kf5
{[%clk 0:00:59.4]} 40... Qxe5+ {[%clk 0:00:08.6]} 0-1

[Event "Early-Titled-Tuesday-Blitz-May-28-2024"]
[Site "Chess.com"]
[Date "2024.05.28"]
[Round "3"]
[White "PapiPapita"]
[Black "The_Machine04"]
[Result "1-0"]
[WhiteElo "2471"]
[BlackElo "2806"]
[TimeControl "180+1"]
[EndTime "8:28:17 PDT"]
[Termination "PapiPapita won by checkmate"]

1. c4 {[%clk 0:02:42.1]} 1... d6 {[%clk 0:02:59.6]} 2. g3 {[%clk 0:02:41.8]}
2... e5 {[%clk 0:02:58.8]} 3. Bg2 {[%clk 0:02:42.5]} 3... f5 {[%clk 0:02:58.6]}
4. Nc3 {[%clk 0:02:42.7]} 4... Nf6 {[%clk 0:02:59.1]} 5. d3 {[%clk 0:02:40.5]}
5... c6 {[%clk 0:02:57.6]} 6. e4 {[%clk 0:02:40.1]} 6... Be7 {[%clk 0:02:54.8]}
7. Nge2 {[%clk 0:02:40.5]} 7... O-O {[%clk 0:02:54.6]} 8. O-O {[%clk 0:02:40.9]}
8... Be6 {[%clk 0:02:34.6]} 9. exf5 {[%clk 0:02:15.5]} 9... Bxf5 {[%clk
0:02:35.5]} 10. h3 {[%clk 0:02:16.1]} 10... d5 {[%clk 0:02:31.7]} 11. d4 {[%clk
0:02:10.4]} 11... e4 {[%clk 0:02:30.3]} 12. Qb3 {[%clk 0:02:06.7]} 12... Qb6
{[%clk 0:02:24.7]} 13. cxd5 {[%clk 0:01:58.5]} 13... Qxb3 {[%clk 0:02:23.3]} 14.
axb3 {[%clk 0:01:58.4]} 14... cxd5 {[%clk 0:02:23.5]} 15. Nf4 {[%clk 0:01:52]}
15... Rd8 {[%clk 0:01:07.4]} 16. g4 {[%clk 0:01:50.8]} 16... Bg6 {[%clk
0:01:07.7]} 17. g5 {[%clk 0:01:48.6]} 17... Nh5 {[%clk 0:01:08]} 18. Nfxd5
{[%clk 0:01:48.7]} 18... Bd6 {[%clk 0:01:05.2]} 19. Nb6 {[%clk 0:01:44.2]} 19...
Nc6 {[%clk 0:00:57.8]} 20. Nxa8 {[%clk 0:01:43.9]} 20... Rxa8 {[%clk 0:00:58.2]}
21. Nxe4 {[%clk 0:01:40.2]} 21... Bxe4 {[%clk 0:00:38.1]} 22. Bxe4 {[%clk
0:01:41.1]} 22... Nxd4 {[%clk 0:00:38.8]} 23. Bxb7 {[%clk 0:01:33.7]} 23... Rb8
{[%clk 0:00:37.3]} 24. Rxa7 {[%clk 0:01:26]} 24... Kf8 {[%clk 0:00:32.3]} 25.
Ra8 {[%clk 0:01:24.2]} 25... Nxb3 {[%clk 0:00:23.6]} 26. Rxb8+ {[%clk
0:01:22.6]} 26... Bxb8 {[%clk 0:00:24.5]} 27. Be3 {[%clk 0:01:22.4]} 27... Be5
{[%clk 0:00:21.9]} 28. Bd5 {[%clk 0:01:18]} 28... Nd4 {[%clk 0:00:21.6]} 29. f4
{[%clk 0:01:00.6]} 29... Ne2+ {[%clk 0:00:21.4]} 30. Kf2 {[%clk 0:00:59.3]}
30... Nexf4 {[%clk 0:00:18.6]} 31. Bxf4 {[%clk 0:00:54.8]} 31... Nxf4 {[%clk
0:00:17.3]} 32. Ke3 {[%clk 0:00:45.5]} 32... Ke7 {[%clk 0:00:16.4]} 33. Rxf4
{[%clk 0:00:45.5]} 33... Bxf4+ {[%clk 0:00:17.3]} 34. Kxf4 {[%clk 0:00:46.4]}
34... Kd6 {[%clk 0:00:18.1]} 35. Bg8 {[%clk 0:00:46.2]} 35... h6 {[%clk
0:00:19]} 36. gxh6 {[%clk 0:00:47.1]} 36... gxh6 {[%clk 0:00:19.9]} 37. Kf5
{[%clk 0:00:47.1]} 37... Kc5 {[%clk 0:00:20.8]} 38. Kg6 {[%clk 0:00:47.7]} 38...
Kd4 {[%clk 0:00:21.7]} 39. Kxh6 {[%clk 0:00:48.3]} 39... Kd3 {[%clk 0:00:22.6]}
40. Kg6 {[%clk 0:00:48.8]} 40... Kc2 {[%clk 0:00:23.2]} 41. h4 {[%clk
0:00:49.7]} 41... Kxb2 {[%clk 0:00:23.6]} 42. h5 {[%clk 0:00:50.6]} 42... Kc3
{[%clk 0:00:24.5]} 43. h6 {[%clk 0:00:51.5]} 43... Kd4 {[%clk 0:00:25.4]} 44. h7
{[%clk 0:00:52.4]} 44... Ke5 {[%clk 0:00:26.3]} 45. h8=Q+ {[%clk 0:00:53.3]}
45... Kd6 {[%clk 0:00:27.2]} 46. Qg7 {[%clk 0:00:53.9]} 46... Kc5 {[%clk
0:00:27.1]} 47. Qf7 {[%clk 0:00:54.1]} 47... Kb6 {[%clk 0:00:28]} 48. Qd5 {[%clk
0:00:54]} 48... Ka6 {[%clk 0:00:28.3]} 49. Qb3 {[%clk 0:00:54]} 49... Ka7 {[%clk
0:00:28.8]} 50. Qb5 {[%clk 0:00:53.9]} 50... Ka8 {[%clk 0:00:29.2]} 51. Bd5+
{[%clk 0:00:54.8]} 51... Ka7 {[%clk 0:00:30.1]} 52. Qb7# {[%clk 0:00:55.5]} 1-0

[Event "Early-Titled-Tuesday-Blitz-May-28-2024"]
[Site "Chess.com"]
[Date "2024.05.28"]
[Round "3"]
[White "NowInChess"]
[Black "PabloZarnicki"]
[Result "1-0"]
[WhiteElo "2246"]
[BlackElo "2542"]
[TimeControl "180+1"]
[EndTime "8:28:19 PDT"]
[Termination "NowInChess won by checkmate"]

1. e4 {[%clk 0:03:00.9]} 1... d6 {[%clk 0:02:56.2]} 2. d3 {[%clk 0:03:00.5]}
2... Nf6 {[%clk 0:02:56.6]} 3. g3 {[%clk 0:03:00.9]} 3... c5 {[%clk 0:02:56.4]}
4. Bg2 {[%clk 0:03:01.1]} 4... Nc6 {[%clk 0:02:57.3]} 5. f4 {[%clk 0:03:01.5]}
5... g6 {[%clk 0:02:57.1]} 6. Nf3 {[%clk 0:03:01.8]} 6... Bg7 {[%clk 0:02:58]}
7. O-O {[%clk 0:03:02.1]} 7... O-O {[%clk 0:02:58.7]} 8. h3 {[%clk 0:03:00.9]}
8... Rb8 {[%clk 0:02:58.6]} 9. Nh4 {[%clk 0:02:58.5]} 9... e6 {[%clk 0:02:46.7]}
10. a4 {[%clk 0:02:36.5]} 10... Bd7 {[%clk 0:02:43.9]} 11. Nc3 {[%clk
0:02:29.9]} 11... Nd4 {[%clk 0:02:43.2]} 12. Ne2 {[%clk 0:02:14.7]} 12... Nxe2+
{[%clk 0:02:42.6]} 13. Qxe2 {[%clk 0:02:14.2]} 13... Bc6 {[%clk 0:02:43.5]} 14.
f5 {[%clk 0:02:04.5]} 14... exf5 {[%clk 0:02:42.9]} 15. exf5 {[%clk 0:02:04.2]}
15... Re8 {[%clk 0:02:41.6]} 16. Qf2 {[%clk 0:01:37.9]} 16... Ng4 {[%clk
0:02:41.4]} 17. Qf4 {[%clk 0:01:37.5]} 17... Bd4+ {[%clk 0:02:38.1]} 18. Kh1
{[%clk 0:01:36.7]} 18... Bxg2+ {[%clk 0:02:32.6]} 19. Nxg2 {[%clk 0:01:29.1]}
19... Nf6 {[%clk 0:02:23.8]} 20. fxg6 {[%clk 0:01:23.6]} 20... fxg6 {[%clk
0:02:22.1]} 21. g4 {[%clk 0:01:15.3]} 21... Qd7 {[%clk 0:02:18.6]} 22. c3 {[%clk
0:01:04.7]} 22... Rf8 {[%clk 0:02:09.1]} 23. Qg5 {[%clk 0:00:48.5]} 23... Be5
{[%clk 0:01:55.6]} 24. Bf4 {[%clk 0:00:47.1]} 24... Qc6 {[%clk 0:01:40.1]} 25.
Bxe5 {[%clk 0:00:40]} 25... dxe5 {[%clk 0:01:41]} 26. Rae1 {[%clk 0:00:30.6]}
26... Nd7 {[%clk 0:01:29.4]} 27. Kg1 {[%clk 0:00:19.9]} 27... Rf3 {[%clk
0:01:27.7]} 28. Rxf3 {[%clk 0:00:16.7]} 28... Qxf3 {[%clk 0:01:27.5]} 29. Qe3
{[%clk 0:00:15.9]} 29... Rf8 {[%clk 0:01:24.4]} 30. Qxf3 {[%clk 0:00:14.9]}
30... Rxf3 {[%clk 0:01:23.9]} 31. Re3 {[%clk 0:00:13.7]} 31... Rf4 {[%clk
0:01:24.6]} 32. Nxf4 {[%clk 0:00:13.2]} 32... exf4 {[%clk 0:01:24.2]} 33. Re7
{[%clk 0:00:12.7]} 33... Nb6 {[%clk 0:01:24.4]} 34. a5 {[%clk 0:00:10.7]} 34...
Nd5 {[%clk 0:01:24.4]} 35. Rxb7 {[%clk 0:00:09.5]} 35... a6 {[%clk 0:01:25.1]}
36. Ra7 {[%clk 0:00:08.1]} 36... f3 {[%clk 0:01:22.4]} 37. Rxa6 {[%clk
0:00:07.4]} 37... Nf4 {[%clk 0:01:22.6]} 38. Ra8+ {[%clk 0:00:05.9]} 38... Kg7
{[%clk 0:01:22.3]} 39. a6 {[%clk 0:00:06.5]} 39... Nxd3 {[%clk 0:01:21]} 40. a7
{[%clk 0:00:04.5]} 40... f2+ {[%clk 0:01:21.9]} 41. Kf1 {[%clk 0:00:04.2]} 41...
Kh6 {[%clk 0:01:22.2]} 42. Rd8 {[%clk 0:00:03.3]} 42... Ne5 {[%clk 0:01:22.6]}
43. a8=Q {[%clk 0:00:02.9]} 43... Kg5 {[%clk 0:01:23.5]} 44. Qe4 {[%clk
0:00:03]} 44... Nf3 {[%clk 0:01:23.1]} 45. Qe3+ {[%clk 0:00:03.3]} 45... Kh4
{[%clk 0:01:23.1]} 46. Qxf3 {[%clk 0:00:04.2]} 46... g5 {[%clk 0:01:23.5]} 47.
Qxf2+ {[%clk 0:00:05.1]} 47... Kxh3 {[%clk 0:01:23.7]} 48. Rd7 {[%clk
0:00:05.5]} 48... h5 {[%clk 0:01:23.1]} 49. Rh7 {[%clk 0:00:06.4]} 49... h4
{[%clk 0:01:23.4]} 50. Rh5 {[%clk 0:00:07.3]} 50... c4 {[%clk 0:01:23.6]} 51.
Rxh4+ {[%clk 0:00:08.2]} 51... gxh4 {[%clk 0:01:23.3]} 52. Qg2# {[%clk
0:00:09.1]} 1-0

[Event "Early-Titled-Tuesday-Blitz-May-28-2024"]
[Site "Chess.com"]
[Date "2024.05.28"]
[Round "3"]
[White "Muracle"]
[Black "alexrustemov"]
[Result "1-0"]
[WhiteElo "2579"]
[BlackElo "2822"]
[TimeControl "180+1"]
[EndTime "8:28:20 PDT"]
[Termination "Muracle won by resignation"]

1. d4 {[%clk 0:03:00.9]} 1... d5 {[%clk 0:03:00]} 2. Nf3 {[%clk 0:03:00.9]} 2...
Nf6 {[%clk 0:02:59.9]} 3. g3 {[%clk 0:03:01.3]} 3... c6 {[%clk 0:02:58.8]} 4.
Bg2 {[%clk 0:03:01.7]} 4... Bf5 {[%clk 0:02:58.7]} 5. O-O {[%clk 0:03:02.5]}
5... e6 {[%clk 0:02:59.2]} 6. c4 {[%clk 0:03:03]} 6... Be7 {[%clk 0:02:57.2]} 7.
Qb3 {[%clk 0:03:03.5]} 7... Qb6 {[%clk 0:02:57]} 8. c5 {[%clk 0:03:04.1]} 8...
Qxb3 {[%clk 0:02:56.5]} 9. axb3 {[%clk 0:03:05]} 9... Nbd7 {[%clk 0:02:47.3]}
10. Nc3 {[%clk 0:03:04.8]} 10... a6 {[%clk 0:02:46.7]} 11. b4 {[%clk 0:03:04.5]}
11... O-O-O {[%clk 0:02:45.4]} 12. h3 {[%clk 0:02:57.2]} 12... h6 {[%clk
0:02:44.3]} 13. g4 {[%clk 0:02:54.7]} 13... Bh7 {[%clk 0:02:39.2]} 14. Bf4
{[%clk 0:02:54.4]} 14... Ne4 {[%clk 0:02:36.9]} 15. Rfc1 {[%clk 0:02:24.2]}
15... Nxc3 {[%clk 0:02:26.8]} 16. Rxc3 {[%clk 0:02:23.6]} 16... Nb8 {[%clk
0:01:47.9]} 17. Ne5 {[%clk 0:02:15.6]} 17... Rhf8 {[%clk 0:01:46.7]} 18. b5
{[%clk 0:02:05.2]} 18... f6 {[%clk 0:01:26.2]} 19. bxa6 {[%clk 0:01:34.6]} 19...
Nxa6 {[%clk 0:01:14.3]} 20. Nxc6 {[%clk 0:01:30.9]} 20... bxc6 {[%clk
0:01:12.5]} 21. Rxa6 {[%clk 0:01:28.8]} 21... Kd7 {[%clk 0:01:12.9]} 22. Rb3
{[%clk 0:01:25.5]} 22... Ke8 {[%clk 0:01:07.4]} 23. Rxc6 {[%clk 0:01:23.5]}
23... Kf7 {[%clk 0:01:06.7]} 24. Rb7 {[%clk 0:01:23.4]} 24... Rfe8 {[%clk
0:00:57.3]} 25. Rcc7 {[%clk 0:01:06]} 25... Kf8 {[%clk 0:00:57]} 26. Bd6 {[%clk
0:00:58.6]} 26... Bxd6 {[%clk 0:00:34.8]} 27. Rf7+ {[%clk 0:00:57]} 27... Kg8
{[%clk 0:00:35.3]} 28. Rxg7+ {[%clk 0:00:56.7]} 28... Kh8 {[%clk 0:00:35.5]} 29.
Rxh7+ {[%clk 0:00:56.8]} 29... Kg8 {[%clk 0:00:35.6]} 30. Rbg7+ {[%clk
0:00:57.3]} 30... Kf8 {[%clk 0:00:35.7]} 31. cxd6 {[%clk 0:00:56.3]} 31... Rxd6
{[%clk 0:00:35.7]} 32. Rg6 {[%clk 0:00:52.4]} 32... Re7 {[%clk 0:00:32.6]} 33.
Rxf6+ {[%clk 0:00:49.5]} 33... Ke8 {[%clk 0:00:32.7]} 34. Rxe7+ {[%clk
0:00:49.3]} 34... Kxe7 {[%clk 0:00:32.9]} 35. Rxh6 {[%clk 0:00:49.8]} 35... Rb6
{[%clk 0:00:33.7]} 36. Bxd5 {[%clk 0:00:47.5]} 36... Rxb2 {[%clk 0:00:10.5]} 37.
Rxe6+ {[%clk 0:00:47.9]} 37... Kd7 {[%clk 0:00:10.5]} 38. Re3 {[%clk 0:00:48.5]}
38... Kd6 {[%clk 0:00:09.9]} 39. Bf3 {[%clk 0:00:49]} 39... Rb4 {[%clk
0:00:08.6]} 40. d5 {[%clk 0:00:49.2]} 1-0